Cogmind - Beta 13 @@@ ROGUE MODE // 2024.04.14 @ 13:10:12 Player: TheedMan Result: Destroyed by S-10 Pest with Light Assault Rifle Performance ------------- Evolutions (0) 0 Regions Visited (4) 800 Robots Destroyed (19) 95 Value Destroyed (543) 543 Prototype IDs (0) 0 Alien Tech Used (0) 0 Bonus (0) 0 TOTAL SCORE: 1438 Bonus ------- None Cogmind --------- Core Integrity 0/250 Matter 400/400 Energy 156/160 System Corruption 0% Temperature Cool (2) Movement Walking (120) Location -9/Mines Parts ------- > --- POWER (1) -------- Light Nuclear Core > --- PROPULSION (2) --- Aluminum Leg Aluminum Leg > --- UTILITY (2) ------ Small Storage Unit Medium Matter Pod > --- WEAPON (2) ------- Small Laser Small Laser > --- INVENTORY (8) ---- Light Ion Engine Aluminum Leg Flexi-carbon Leg Experimental Sensor Array Small Laser Particle Gun Mace Ripper Peak State ------------ > --- POWER ------------ Light Nuclear Core > --- PROPULSION ------- Aluminum Leg Aluminum Leg > --- UTILITY ---------- Small Storage Unit Medium Matter Pod > --- WEAPON ----------- Mace Ripper > --- INVENTORY -------- Light Ion Engine Aluminum Leg Flexi-carbon Leg Experimental Sensor Array Small Laser Small Laser Small Laser Particle Gun [Rating: 15] Favorites ----------- Power Light Ion Engine Engine Light Ion Engine Power Core Light Nuclear Core Propulsion Aluminum Leg Treads Light Treads Leg Aluminum Leg Utility Small Storage Unit Storage Small Storage Unit Processor Targeting Computer Weapon Assault Rifle Energy Gun Small Laser Ballistic Gun Assault Rifle Launcher Rocket Launcher Impact Weapon Mace Slashing Weapon Ripper Build | -11 -10 -10 -10 -9 ------- Run | Yrd Mat Min Exi Min Slots Evolved . | . . . . . Power . | . . . . . Propulsion . | . . . . . Utility . | . . . . . Weapon . | . . . . . Parts Attached 32 | 6 6 5 1 14 Power 6 | 1 1 1 . 3 Engine 5 | 1 1 1 . 2 Core 1 | . . . . 1 Reactor . | . . . . . Propulsion 10 | 2 3 1 . 4 Treads 2 | . . . . 2 Leg 8 | 2 3 1 . 2 Wheel . | . . . . . Hover . | . . . . . Flight . | . . . . . Utility 3 | 1 1 . 1 . Device . | . . . . . Storage 2 | 1 . . 1 . Processor 1 | . 1 . . . Hackware . | . . . . . Protection . | . . . . . Artifact . | . . . . . Weapon 13 | 2 1 3 . 7 Energy Gun 2 | . . . . 2 Energy Cannon . | . . . . . Ballistic Gun 7 | 2 1 2 . 2 Ballistic Cannon . | . . . . . Launcher 2 | . . 1 . 1 Special Weapon . | . . . . . Impact Weapon 1 | . . . . 1 Slashing Weapon 1 | . . . . 1 Piercing Weapon . | . . . . . Special Melee Weapon . | . . . . . Unidentified Prototypes . | . . . . . Parts Lost 11 | . . 1 . 10 Power 2 | . . . . 2 Propulsion 3 | . . . . 3 Utility 1 | . . 1 . . Weapon 5 | . . . . 5 Highest Loss Streak 5 | . . 1 . 5 To Critical Strikes . | . . . . . Average Slot Usage (%) 93 | . 99 87 96 93 Engine 13 | . 14 14 14 10 Treads 5 | . . . . 20 Leg 22 | . 28 28 28 6 Storage 20 | . 14 14 24 28 Processor 3 | . 13 1 . . Ballistic Gun 22 | . 28 27 28 5 Impact Weapon 1 | . . . . 7 Slashing Weapon 2 | . . . . 8 Naked Turns . | . . . . . Heaviest Build 17 | 12 13 13 15 17 Greatest Support 40 | 20 20 20 20 40 Greatest Overweight (x) 5 | 3 . . . 5 Average Overweight (x) . | . . . . . Largest Inventory Capacity 8 | 8 8 8 8 8 Average Capacity 7 | 7 8 8 8 8 Most Carried 8 | 4 8 8 8 8 Average Carried 6 | 2 4 7 7 4 Final Capacity 8 | 8 8 8 8 8 Final Carried 8 | 4 8 8 8 8 Class Distribution -------------------- 96% | Mutant 3% | Scavenger-Mutant Dominant Class ---------------- Mutant | -10/Materials Mutant | -10/Mines Mutant | -10/Exiles Mutant | -9/Mines Resources | -11 -10 -10 -10 -9 ----------- Run | Yrd Mat Min Exi Min Matter Collected 940 | 219 224 164 59 274 Remotely . | . . . . . Salvage Created 674 | . 380 138 . 156 Parts 43 | . 23 11 . 9 Haulers Intercepted . | . . . . . Recyclers Shooed 1 | . 1 . . . Parts Field Recycled . | . . . . . Retrieved Matter . | . . . . . Parts Self-Destructed . | . . . . . Prevented . | . . . . . Kills | -11 -10 -10 -10 -9 ------- Run | Yrd Mat Min Exi Min Combat Hostiles Destroyed 26 | . 7 6 . 13 Melee 3 | . . . . 3 Guns 13 | . 7 6 . . AOE 10 | . . . . 10 Classes Destroyed 5 | . 2 2 . 1 Builder 1 | . . . . 1 Watcher 3 | . 3 . . . Swarmer 3 | . . 3 . . Grunt 12 | . 7 2 . 3 Assembled 11 | . . 1 . 10 Best Kill Streak 8 | . 4 3 . 8 Combat Bots Only 8 | . 3 3 . 8 Max Kills in Single Turn 3 | . 1 1 . 3 Gunslinging . | . . . . . Exploded 3 | . . . . 3 Melee 2 | . . . . 2 Uniques/NPCs Destroyed . | . . . . . Combat | -11 -10 -10 -10 -9 -------- Run | Yrd Mat Min Exi Min Hostile Shots Fired 140 | . 49 16 . 75 Missed 36 | . 17 2 . 17 Damage Taken 1674 | . 385 241 . 1048 Core 258 | . 45 68 . 145 Absorbed by Shields . | . . . . . Core Remaining (%) 100 | 100 . . . . Volleys Fired 69 | . 37 15 . 17 Largest 2 | . 2 2 . 2 Hottest 43 | . 43 43 . 43 Shots Fired 121 | . 74 28 . 19 Gun 113 | . 74 26 . 13 Cannon . | . . . . . Launcher 8 | . . 2 . 6 Special . | . . . . . Kinetic 113 | . 74 26 . 13 Thermal . | . . . . . Explosive 8 | . . 2 . 6 Electromagnetic . | . . . . . Robot Hit Streak 13 | . 9 13 . 9 Robot Miss Streak 5 | . 4 1 . 5 Penetration Max . | . . . . . Secondary Targets 2 | . 1 1 . . Max Gunslinging Chain 1 | . 1 1 . . Shots Hit Robots 81 | . 47 20 . 14 Core Hits 48 | . 21 9 . 18 Critical Kills . | . . . . . Critical Parts Destroyed 1 | . 1 . . . Critical Strikes 2 | . 1 . . 1 Destroy 1 | . 1 . . . Sever 1 | . . . . 1 Melee Attacks 5 | . . . . 5 Impact 1 | . . . . 1 Slashing 4 | . . . . 4 Piercing . | . . . . . Sneak Attacks . | . . . . . Combat Hostiles . | . . . . . Follow-up Attacks 1 | . . . . 1 Damage Inflicted 1896 | . 693 300 . 903 Guns 1051 | . 687 287 . 77 Cannons . | . . . . . Explosions 654 | . . . . 654 Melee 172 | . . . . 172 Ramming 19 | . 6 13 . . Kinetic 1051 | . 687 287 . 77 Thermal . | . . . . . Explosive 654 | . . . . 654 Electromagnetic . | . . . . . Impact 32 | . . . . 32 Slashing 140 | . . . . 140 Piercing . | . . . . . Highest Corruption . | . . . . . Average Corruption . | . . . . . Corruption Purged . | . . . . . Corruption Blocked . | . . . . . Overload Shots . | . . . . . Overflow Damage 16 | . . . . 16 Projectiles . | . . . . . Explosions 16 | . . . . 16 Melee . | . . . . . Knockbacks . | . . . . . Impact . | . . . . . Kinetic . | . . . . . Secondary . | . . . . . Self-Inflicted Damage 226 | . . 93 . 133 Shots 6 | . . 2 . 4 Rammed . | . . . . . Targets Rammed 6 | . 3 3 . . Kicked 6 | . 3 3 . . Crushed . | . . . . . Highest Temperature 16 | . 3 3 . 16 Average Temperature 4 | . 2 3 . 7 Received Heat Transfer 517 | . 222 60 . 235 Siege Activations . | . . . . . Robots Corrupted . | . . . . . Combat Hostiles . | . . . . . Parts Fried . | . . . . . Impact Corruptions . | . . . . . Robots Melted . | . . . . . Combat Hostiles . | . . . . . Parts Melted . | . . . . . Heat Transferred . | . . . . . Parts Sabotaged . | . . . . . Parts Stolen . | . . . . . Parts Stripped . | . . . . . Power Chain Reactions . | . . . . . Alert | -11 -10 -10 -10 -9 ------- Run | Yrd Mat Min Exi Min Peak Influence 218 | . 218 194 . 83 Initial 84 | . . 84 . . Average 81 | . 90 131 . 31 Maximum Alert Level 1 | . 1 . . . Low Security (%) 97 | 100 90 100 . 100 Level 1 2 | . 9 . . . Level 2 . | . . . . . Level 3 . | . . . . . Level 4 . | . . . . . Level 5 . | . . . . . High Security . | . . . . . Max Security . | . . . . . Squads Dispatched 1 | . 1 . . . Investigation . | . . . . . Extermination . | . . . . . Reinforcement 1 | . 1 . . . Assault . | . . . . . Garrison . | . . . . . Intercept . | . . . . . Searches Triggered . | . . . . . Construction Impeded . | . . . . . Haulers Reinforced . | . . . . . Active Scanning Responses . | . . . . . Cargo Convoy Interrupts . | . . . . . Stealth | -11 -10 -10 -10 -9 --------- Run | Yrd Mat Min Exi Min Distress Signals 1 | . 1 . . . Communications Jammed . | . . . . . Distress Signals . | . . . . . Times Spotted 47 | . 12 6 . 29 Peak Tracking Total 16 | . 4 3 . 16 Tactical Retreats 2 | . . 1 . 1 Traps | -11 -10 -10 -10 -9 ------- Run | Yrd Mat Min Exi Min Traps Triggered . | . . . . . Indirectly . | . . . . . Trap Hack Attempts . | . . . . . Triggered . | . . . . . Disarmed . | . . . . . Reprogrammed . | . . . . . Reused . | . . . . . Traps Extracted . | . . . . . Installed . | . . . . . Triggered . | . . . . . Machines | -11 -10 -10 -10 -9 ---------- Run | Yrd Mat Min Exi Min Machines Disabled . | . . . . . Max in Single Turn . | . . . . . Machines Repaired . | . . . . . Machines Dismantled . | . . . . . Machines Sabotaged . | . . . . . Overloaded Fab Kills . | . . . . . Hacking | -11 -10 -10 -10 -9 --------- Run | Yrd Mat Min Exi Min Machines Accessed 2 | . 1 . 1 . Terminals 1 | . 1 . . . Fabricators . | . . . . . Repair Stations . | . . . . . Recycling Units . | . . . . . Scanalyzers . | . . . . . Garrison Access . | . . . . . Total Hacks 6 | . 2 . 4 . Successful 5 | . 1 . 4 . Failed 1 | . 1 . . . Catastrophic . | . . . . . Database Lockouts . | . . . . . Manual . | . . . . . Terminals 2 | . 2 . . . Fabricators . | . . . . . Repair Stations . | . . . . . Recycling Units . | . . . . . Scanalyzers . | . . . . . Garrison Access . | . . . . . Terminal Hacks 5 | . 1 . 4 . Record 4 | . . . 4 . Branch Access Points 1 | . 1 . . . Fabricator Hacks . | . . . . . Repair Station Hacks . | . . . . . Recycling Unit Hacks . | . . . . . Scanalyzer . | . . . . . Garrison Access Hacks . | . . . . . Unauthorized Hacks . | . . . . . Terminals . | . . . . . Fabricators . | . . . . . Repair Stations . | . . . . . Recycling Units . | . . . . . Scanalyzers . | . . . . . Garrison Access . | . . . . . Data Cores Recovered . | . . . . . Used . | . . . . . Hacking Detections 1 | . 1 . . . Full Trace Events . | . . . . . Feedback Events . | . . . . . Feedback Blocked . | . . . . . Robot Schematics Acquired . | . . . . . Robots Built . | . . . . . Authchips . | . . . . . Time . | . . . . . Total Robot Build Rating . | . . . . . Part Schematics Acquired . | . . . . . Parts Built . | . . . . . Authchips . | . . . . . Time . | . . . . . Total Part Build Rating . | . . . . . Parts Repaired . | . . . . . Time . | . . . . . Parts Recycled . | . . . . . Recycled Matter . | . . . . . Retrieved Matter . | . . . . . Retrieved Components . | . . . . . Parts Scanalyzed . | . . . . . Part Schematics Acquired . | . . . . . Parts Damaged . | . . . . . Bothacking | -11 -10 -10 -10 -9 ------------ Run | Yrd Mat Min Exi Min Used RIF Installer . | . . . . . Robots Hacked . | . . . . . Non-combat . | . . . . . Combat . | . . . . . Robot Hacks Applied . | . . . . . Relay Couplers Released . | . . . . . Fabnet Peak Effective % . | . . . . . Robots Rewired . | . . . . . Allies Hacked . | . . . . . Hacks Repelled . | . . . . . Allies | -11 -10 -10 -10 -9 -------- Run | Yrd Mat Min Exi Min Total Allies . | . . . . . Largest Group . | . . . . . Highest-Rated Group . | . . . . . Highest-Rated Ally . | . . . . . Total Orders . | . . . . . Ally Attacks . | . . . . . Total Damage . | . . . . . Kills . | . . . . . Allies Corrupted . | . . . . . Allies Melted . | . . . . . Intel | -11 -10 -10 -10 -9 ------- Run | Yrd Mat Min Exi Min Robot Analysis Total . | . . . . . Derelict Logs Recovered . | . . . . . Drone Launches . | . . . . . Drone Recoveries . | . . . . . Exploration | -11 -10 -10 -10 -9 ------------- Run | Yrd Mat Min Exi Min Turns Passed 1700 | 57 357 444 428 414 Spaces Moved 1128 | 34 189 322 355 228 Core 9 | 7 . . . 2 Treads 167 | . . . . 167 Legs 952 | 27 189 322 355 59 Wheels . | . . . . . Hover . | . . . . . Flight . | . . . . . Fastest Speed 50 | 50 120 120 120 120 Average Speed 126 | 132 120 120 120 151 Slowest Speed 300 | 200 120 120 120 300 Overloaded Moves . | . . . . . Propulsion Burnouts . | . . . . . Robots Hopped . | . . . . . Cave-ins Triggered . | . . . . . Exploration Rate (%) 42 | 3 41 53 73 42 Regions Visited 4 Branch Regions 3 Pre-discovered Areas 2 | . . 1 1 . Known Exits Taken 1 | . 1 . . . Unknown Exits Taken 3 | 1 . 1 1 . Scrap Searched 2 | . . 1 . 1 Spaces Dug . | . . . . . Terrain Destroyed 72 | . . 14 . 58 Melee . | . . . . . Projectile . | . . . . . AOE 72 | . . 14 . 58 Terrain Rammed . | . . . . . Walls Destroyed . | . . . . . Machines Disabled . | . . . . . Actions | -11 -10 -10 -10 -9 --------- Run | Yrd Mat Min Exi Min Total 1263 | 43 242 351 359 268 Wait 5 | . 4 1 . . Move 1124 | 33 188 321 354 228 Hop . | . . . . . Pick Up 14 | 4 2 2 2 4 Fast Attach 13 | 6 1 . 1 5 Attach 6 | . . . . 6 Detach 1 | . . . . 1 Swap 13 | . 5 5 . 3 Drop 8 | . 2 4 2 . Fire 69 | . 37 15 . 17 Melee 4 | . . . . 4 Ram . | . . . . . Kick 6 | . 3 3 . . Crush . | . . . . . Escape Stasis . | . . . . . Rewire . | . . . . . Trap . | . . . . . Miscellaneous . | . . . . . Route ------- -11/Scrapyard -10/Materials (discovered 3 exits: [*Mat] / *Min x2) -10/Mines (discovered 2 exits: [*Mat] / *Exi) -10/Exiles -9/Mines History --------- Turn | Location | Event 23 | -11/Scrapyard | Discovered new exit (range 16) 58 | -11/Scrapyard | Entered Materials 289 | -10/Materials | Discovered new exit (range 15) 303 | -10/Materials | Identified exit to Mines 319 | -10/Materials | Build established: Mutant 415 | -10/Materials | Entered Mines 422 | -10/Mines | Received a Rocket Launcher from a helpful Derelict 613 | -10/Mines | Found a damaged Exp. Sensor Array with a note attached 617 | -10/Mines | Found Prototype Device 756 | -10/Mines | Discovered new exit (range 13) 764 | -10/Mines | Learned location of Storage (-8) 815 | -10/Mines | Excavation squad dispatched 815 | -10/Mines | A large section of the Mines collapsed 854 | -10/Mines | Deemed a non-threat by the Exiles lab entrance 854 | -10/Mines | Discovered new exit (range 5) 859 | -10/Mines | Entered Exiles 894 | -10/Exiles | Met 8R-AWN 910 | -10/Exiles | Met EX-HEX 974 | -10/Exiles | Met EX-DEC 1006 | -10/Exiles | Visited The Gauntlet 1160 | -10/Exiles | Learned location of Zion (-7) 1200 | -10/Exiles | Discovered new exit (range 14) 1287 | -10/Exiles | Entered Mines 1305 | -9/Mines | Assembled infested the area 1310 | -9/Mines | Assisted by a Guerilla fighting off Assembled 1319 | -9/Mines | Core integrity fell below 50% 1354 | -9/Mines | Core integrity fell below 20% 1377 | -9/Mines | Lost 5 parts (1p1n3w) 1380 | -9/Mines | Destroyed 8 combat bots 1413 | -9/Mines | A weapon hastily lodged in a ceiling crevice suddenly fell to the ground 1434 | -9/Mines | Lost 3 parts (1p2w) 1701 | -9/Mines | Destroyed by S-10 Pest with Light Assault Rifle Last Messages --------------- U-05 Engineer lays Concrete. C-30 ARC bursts open, deploying its payload. G-47 Trooper unfolds itself. G-34 Mercenary unfolds itself. G-47 Trooper destroyed. Lgt. Treads destroyed. G-34 Mercenary Ion Engine severed. Lgt. Treads destroyed. G-34 Mercenary destroyed. Mace follow-up attack on G-34 Mercenary. G-34 Mercenary destroyed. [Achievement: Ambidextrous] Acquired Aluminum Leg. Acquired 20 matter. Acquired Aluminum Leg. Acquired Sml. Laser. Acquired 10 matter. Acquired Sml. Laser. Acquired Particle Gun. Acquired 20 matter. Map ----- +----------------------------------------------------+ | | | | | | | | | | | | | | | | | | | | | | | | | | | | | | | | | | | | | ???????????????????????????????????? | | ???????????????????????????????????? | | ???????????????????????????????????? | | ???????????????????????????????????? | | ????????????????????????? ??????? | | ????????############# ???????? | | ???# ### #??????????? | | ??# @ #???????????? | | ??# ## ########????????????? | | ??## ### #???????????????????? | | ???### #?# #????###????????????? | | ?????## #?# #???## #????????????? | | ??????# #?# ##### ##???????????? | | ??????# #?# %!*#???????????? | | ??????## s #?#######% %#???????????? | | ???????## #??????## % #???????????? | | ????????# ???????# ! ##??????????? | | ????????# ???????# #??????????? | | ????????# ???????## #??????????? | | ????????# ????????## #??????????? | | ?????????##?????????# ##??????????? | | ????????????????????# #???????????? | | ???????????????????## #???????????? | | ??????????????????## ##??????????? | | ??????????????????# ##?????????? | | ??????????????????# #?????????? | | ???#######????????# #?????????? | | ???# #????????## ##?????????? | | ???# #?????????# #??????????? | | ???# #?????????## ##?????????? | | ???# """ #??????????## ##????????? | | ???# """ #???????????## #????????? | +----------------------------------------------------+ Best States ------------- Heat Dissipation 25 Energy Generation 14 Energy Capacity 160 Matter Stores 400 Matter Capacity 400 Sight Range 16 Terrain Scan Density 10 Evasion (%) 55 Targeting Accuracy 5 Recoil Reduction 2 Item Schematics ----------------- None Robot Schematics ------------------ None Fabricated ------------ Nothing Alien Tech Used ----------------- None Achievements -------------- Ambidextrous Let's See Who's Tougher Challenges ------------ None Game ------ Seed SalvageMissileBoregun Manual? 0 Play Time 00:23:14 Cumulative 7.7 hours Start 2024.04.14 @ 12:47:57 End 2024.04.14 @ 13:10:12 Sessions 1 Manual Loads 0 Difficulty Rogue Special Mode None Game No. 18 Rogue 18 Adventurer 0 Explorer 0 Win Type - Total 0 Types 0/0/0/0/0/0/0/0/0 Lore% 8 Gallery% 10 Achievement% 12 Wizard Run 0 Options --------- Layout 1 ASCII 0 Keyboard 0 Movement Mouse Keybinds 0 Fullscreen 1 Font 24/Smallcaps Map View 50x35 Zoom Use 0% Tactical HUD 0 Map Filters NONE Filters NONE Steam 1 RUN: 1769849d-81b1-48b6-926a-3d9f5b291828